bitfinex-derivatives/quotes_BTCF0:USTF0_20241022
["timestamp","ask_amount","ask_price","bid_price","bid_amount"]
[1729611905340,0.074151,67460.0,67459.0,0.40660339]
[1729611906943,0.074151,67460.0,67459.0,0.34805239]
[1729611907136,0.518871,67460.0,67459.0,0.2119798]
[1729611907441,0.074155,67456.0,67455.0,0.08902441]
[1729611907627,0.07416,67452.0,67451.0,0.13612]
[1729611907831,0.18416,67452.0,67451.0,0.13612]
[1729611908238,0.0697,67460.0,67451.0,0.24612]
[1729611908444,0.074151,67460.0,67459.0,0.184152]
[1729611909035,0.074151,67460.0,67459.0,0.176152]
[1729611909236,0.078151,67460.0,67459.0,0.176152]
[1729611909935,0.078151,67460.0,67456.0,0.184155]
[1729611910135,0.078151,67460.0,67452.0,0.0723]
[1729611910136,0.074157,67454.0,67453.0,0.074158]
[1729611910346,0.074157,67454.0,67453.0,0.18730111]
[1729611911936,0.11,67461.0,67453.0,0.22314311]
[1729611912140,0.11,67461.0,67457.0,0.11]
[1729611912341,0.074153,67458.0,67457.0,0.11]
[1729611912843,0.074153,67458.0,67457.0,0.24612]
[1729611913237,0.074153,67458.0,67457.0,0.13612]
[1729611913951,0.076153,67458.0,67457.0,0.13612]
[1729611915135,0.186153,67458.0,67457.0,0.13612]
[1729611916042,0.184153,67458.0,67457.0,0.13612]
[1729611916233,0.186153,67458.0,67457.0,0.13612]
[1729611916642,0.186153,67458.0,67457.0,0.210274]
[1729611916842,0.076153,67458.0,67457.0,0.210274]
[1729611917037,0.074153,67458.0,67457.0,0.210274]
[1729611917444,0.074153,67458.0,67457.0,0.13612]
[1729611920745,0.074153,67458.0,67457.0,0.210274]
[1729611922352,0.074153,67458.0,67457.0,0.30507509]
[1729611922845,0.074153,67458.0,67457.0,0.16895509]
[1729611923049,0.074153,67458.0,67457.0,0.30507509]
[1729611923537,0.074153,67458.0,67457.0,0.29707509]
[1729611925542,0.074153,67458.0,67457.0,0.202274]
[1729611925743,0.074153,67458.0,67457.0,0.29697677]
[1729611926654,0.22239338,67458.0,67457.0,0.29697677]
[1729611929552,0.22239338,67458.0,67457.0,0.38596581]
[1729611929744,0.22239338,67458.0,67457.0,0.29697677]
[1729611930451,0.22239338,67458.0,67457.0,0.29700523]
[1729611931453,0.22239338,67458.0,67457.0,0.40991032]
[1729611933651,0.22239338,67458.0,67457.0,0.16088523]
[1729611933850,0.22239338,67458.0,67457.0,0.29700523]
[1729611934250,0.22239338,67458.0,67457.0,0.40985804]
[1729611934851,0.22239338,67458.0,67457.0,0.29700523]
[1729611935256,0.22239338,67458.0,67457.0,0.4098255]
[1729611936654,0.22239338,67458.0,67457.0,0.4108255]
[1729611938957,0.33239338,67458.0,67457.0,0.2667055]
[1729611939163,0.33239338,67458.0,67457.0,0.4023855]
[1729611940755,0.44239338,67458.0,67457.0,0.0956866]
[1729611940956,0.36824038,67458.0,67454.0,0.08903951]
[1729611941265,0.074173,67442.0,67439.0,0.17757415]
[1729611941563,0.074162,67450.0,67440.0,0.11343677]
[1729611941564,0.074172,67441.0,67440.0,0.11343677]
[1729611941766,0.074172,67441.0,67439.0,0.13568]
[1729611941767,0.11,67441.0,67439.0,0.13568]
[1729611942061,0.074173,67440.0,67439.0,0.209854]
[1729611942363,0.074175,67438.0,67436.0,0.49648]
[1729611942663,0.074175,67438.0,67436.0,0.13664]
[1729611942664,0.074176,67437.0,67436.0,0.13664]
[1729611942958,0.074176,67437.0,67436.0,0.13568]
[1729611943158,0.074176,67437.0,67436.0,0.209857]
[1729611943365,0.074176,67437.0,67436.0,0.13568]
[1729611943562,0.141,67447.0,67436.0,0.24568]
[1729611943859,0.074172,67441.0,67440.0,0.25823439]
[1729611944065,0.074172,67441.0,67440.0,0.184172]
[1729611944270,0.074172,67441.0,67440.0,0.25820656]
[1729611944461,0.36156,67449.0,67440.0,0.31971456]
[1729611944656,0.074165,67447.0,67446.0,0.074166]
[1729611947267,0.075165,67447.0,67446.0,0.074166]
[1729611949159,0.074168,67444.0,67443.0,0.31820356]
[1729611949963,0.074168,67444.0,67443.0,0.07403456]
[1729611950166,0.244168,67444.0,67443.0,0.07403456]
[1729611950367,0.07417,67443.0,67442.0,0.07403456]
[1729611951164,0.07417,67443.0,67442.0,0.08450542]
[1729611951470,0.07417,67443.0,67442.0,0.01047086]
[1729611951681,0.17,67444.0,67441.0,0.21930556]
[1729611951972,0.074171,67442.0,67441.0,0.21930556]
[1729611952266,0.074171,67442.0,67441.0,0.21925532]
[1729611952574,0.074171,67442.0,67441.0,0.145271]
[1729611952759,0.074171,67442.0,67441.0,0.15562384]
[1729611954156,0.074171,67442.0,67441.0,0.14762384]
[1729611954667,0.074171,67442.0,67441.0,0.28330384]
[1729611955868,0.074171,67442.0,67441.0,0.37706955]
[1729611958473,0.074171,67442.0,67441.0,0.37699911]
[1729611959772,0.075171,67442.0,67441.0,0.38799911]
[1729611960374,0.075171,67442.0,67441.0,0.29412232]
[1729611960575,0.075171,67442.0,67441.0,0.36829432]
[1729611960977,0.001,67442.0,67441.0,0.36829432]
[1729611961277,0.001,67442.0,67441.0,0.74879998]
[1729611962982,0.002,67442.0,67441.0,0.75279998]
[1729611963379,0.076171,67442.0,67441.0,0.67862798]
[1729611963974,0.076171,67442.0,67441.0,0.75279998]
[1729611964176,0.076171,67442.0,67441.0,0.55401998]
[1729611964382,0.076171,67442.0,67441.0,0.46949514]
[1729611964589,0.076171,67442.0,67441.0,0.3758]
[1729611964779,0.246171,67442.0,67441.0,0.3758]
[1729611965088,0.076171,67442.0,67441.0,0.3758]
[1729611965677,0.076171,67442.0,67441.0,0.449972]
[1729611965987,0.076171,67442.0,67441.0,0.6177443]
[1729611966180,0.076171,67442.0,67441.0,0.67891568]
[1729611966578,0.002,67442.0,67441.0,0.67891568]
[1729611967177,0.076171,67442.0,67441.0,0.67891568]
[1729611968585,0.076171,67442.0,67441.0,0.68927761]
[1729611969493,0.076171,67442.0,67441.0,0.68127761]
[1729611970586,0.076171,67442.0,67441.0,0.77006496]
[1729611970791,0.076171,67442.0,67441.0,0.68149168]
[1729611972279,0.002,67442.0,67441.0,0.68149168]
[1729611973681,0.002,67442.0,67441.0,0.54629168]
[1729611973882,0.076171,67442.0,67441.0,0.68149168]
[1729611975491,0.076171,67442.0,67441.0,0.58753393]
[1729611975689,0.002,67442.0,67441.0,0.68139911]
[1729611976586,0.076171,67442.0,67441.0,0.68139911]
[1729611977395,0.076171,67442.0,67441.0,0.67103718]
[1729611977586,0.076171,67442.0,67441.0,0.59686518]
[1729611977784,0.076171,67442.0,67441.0,0.46166518]
[1729611978092,0.076171,67442.0,67441.0,0.59686518]
[1729611978387,0.216271,67442.0,67441.0,0.59686518]
[1729611980082,0.216271,67442.0,67441.0,0.67103718]
[1729611980483,0.216271,67442.0,67441.0,0.59686518]
[1729611981697,0.216271,67442.0,67441.0,0.46166518]
[1729611981892,0.216271,67442.0,67441.0,0.10086518]
[1729611982491,0.216271,67442.0,67441.0,0.17506439]
[1729611982783,0.216271,67442.0,67441.0,0.0811637]
[1729611983094,0.216271,67442.0,67441.0,0.10086099]
[1729611983591,0.215271,67442.0,67441.0,0.17101583]
[1729611983895,0.216271,67442.0,67441.0,0.17501583]
[1729611984785,0.216271,67442.0,67441.0,0.16701583]
[1729611984990,0.215271,67442.0,67441.0,0.07815484]
[1729611985195,0.216271,67442.0,67441.0,0.08015484]
[1729611986395,0.216271,67442.0,67441.0,0.006]
[1729611986694,0.216271,67442.0,67441.0,0.08015484]
[1729611987083,0.216271,67442.0,67441.0,0.006]
[1729611989899,0.216271,67442.0,67441.0,0.08015484]
[1729611990402,0.216271,67442.0,67441.0,0.006]
[1729611993496,0.216271,67442.0,67441.0,0.08015484]
[1729611994289,0.216271,67442.0,67441.0,0.006]
[1729611994592,0.216271,67442.0,67441.0,0.08015484]
[1729611997693,0.076171,67442.0,67441.0,0.15432684]
[1729611997896,0.076171,67442.0,67441.0,0.15429742]
[1729611998201,0.076171,67442.0,67441.0,0.080172]
[1729611999401,0.075171,67442.0,67441.0,0.076172]
[1729611999603,0.074171,67442.0,67441.0,0.078172]
[1729611999803,0.074171,67442.0,67441.0,0.17176251]
[1729612000100,0.074158,67456.0,67455.0,0.074155]
[1729612000321,0.074158,67456.0,67455.0,0.11]
[1729612000491,0.074156,67455.0,67454.0,0.07411864]
[1729612000698,0.434956,67455.0,67451.0,0.13468]
[1729612000999,0.434956,67455.0,67442.0,0.11]
[1729612001000,0.074161,67451.0,67448.0,0.07411864]
[1729612001298,0.074164,67448.0,67447.0,0.20879864]
[1729612001500,0.074164,67448.0,67447.0,0.30214788]
[1729612003103,0.074164,67448.0,67447.0,0.30213795]
[1729612003312,0.076164,67448.0,67447.0,0.30213795]
[1729612005121,0.076164,67448.0,67447.0,0.22801931]
[1729612005520,0.079164,67448.0,67447.0,0.22801931]
[1729612005827,0.079164,67448.0,67447.0,0.16742494]
[1729612006125,0.079164,67448.0,67447.0,0.16739876]
[1729612006321,0.074165,67447.0,67446.0,0.07408563]
[1729612006617,0.074165,67447.0,67446.0,0.16744848]
[1729612007707,0.074165,67447.0,67446.0,0.1674784]
[1729612008116,0.075165,67447.0,67446.0,0.1674784]
[1729612008701,0.076165,67447.0,67446.0,0.1674784]
[1729612008907,0.076165,67447.0,67446.0,0.09339277]
[1729612009117,0.076165,67447.0,67446.0,0.2416435]
[1729612009413,0.076165,67447.0,67446.0,0.16755877]
[1729612011995,0.076165,67447.0,67446.0,0.14824489]
[1729612012600,0.076165,67447.0,67445.0,0.07407889]
[1729612012800,0.076165,67447.0,67446.0,0.07407858]
[1729612013103,0.074166,67446.0,67445.0,0.14824558]
[1729612015904,0.074166,67446.0,67445.0,0.16750132]
[1729612017214,0.17,67451.0,67444.0,0.13468]
[1729612017410,0.074167,67445.0,67444.0,0.13468]
[1729612017604,0.074167,67445.0,67444.0,0.22793506]
[1729612017909,0.074167,67445.0,67444.0,0.30210306]
[1729612018212,0.074167,67445.0,67444.0,0.208848]
[1729612018507,0.074167,67445.0,67444.0,0.30211045]
[1729612018705,0.074167,67445.0,67444.0,0.208848]
[1729612018905,0.074167,67445.0,67444.0,0.208808]
[1729612019107,0.074167,67445.0,67444.0,0.30218127]
[1729612019912,0.074167,67445.0,67444.0,0.30318127]
[1729612021008,0.074167,67445.0,67444.0,0.30316754]
[1729612026410,0.074167,67445.0,67444.0,0.3921099]
[1729612026610,0.3608,67449.0,67444.0,0.3179419]
[1729612026808,0.074164,67448.0,67447.0,0.244164]
[1729612027003,0.074164,67448.0,67447.0,0.33752354]
[1729612027324,0.074164,67448.0,67447.0,0.18925459]
[1729612028016,0.077164,67448.0,67447.0,0.18925459]
[1729612028420,0.003,67448.0,67447.0,0.18925459]
[1729612028714,0.077164,67448.0,67447.0,0.18925459]
[1729612029419,0.077164,67448.0,67447.0,0.27824302]
[1729612029619,0.077164,67448.0,67447.0,0.16752354]
[1729612030023,0.077164,67448.0,67447.0,0.16738048]
[1729612031221,0.077164,67448.0,67447.0,0.15938048]
[1729612031423,0.079164,67448.0,67447.0,0.15938048]
[1729612033020,0.005,67448.0,67447.0,0.15938048]
[1729612033324,0.005,67448.0,67447.0,0.57451926]
[1729612034219,0.14824038,67458.0,67457.0,0.074154]
[1729612034439,0.3608,67472.0,67465.0,0.074145]
[1729612034618,0.074139,67471.0,67470.0,0.17]
[1729612034815,0.074139,67471.0,67470.0,0.24414]
[1729612035328,0.08250667,67479.0,67470.0,0.62288924]
[1729612035523,0.074129,67481.0,67480.0,0.074129]
[1729612035714,0.074129,67481.0,67480.0,0.378249]
[1729612036335,0.25184885,67487.0,67486.0,0.074122]
[1729612036622,0.25184885,67487.0,67486.0,0.69596151]
[1729612037223,0.25184885,67487.0,67486.0,0.604922]
[1729612037423,0.02611095,67487.0,67486.0,0.604922]
[1729612037619,0.02611095,67487.0,67486.0,0.69559666]
[1729612037819,0.02611095,67487.0,67486.0,1.14011666]
[1729612038221,0.02611095,67487.0,67486.0,1.049442]
[1729612038423,0.02611095,67487.0,67486.0,1.27037147]
[1729612038621,0.03011095,67487.0,67486.0,1.27037147]
[1729612039337,0.03011095,67487.0,67486.0,1.32925339]
[1729612040022,0.02611095,67487.0,67486.0,1.32925339]
[1729612040222,0.02611095,67487.0,67486.0,1.27337147]
[1729612040428,0.02611095,67487.0,67486.0,1.27537147]
[1729612041317,0.02611095,67487.0,67486.0,1.31947159]
[1729612042329,0.02611095,67487.0,67486.0,1.27537147]
[1729612045532,0.3608,67505.0,67495.0,0.074111]
[1729612045726,0.3714344,67505.0,67504.0,0.17]
[1729612046130,0.074106,67501.0,67500.0,0.17]
[1729612046434,0.074106,67501.0,67500.0,0.162]
[1729612047040,0.074112,67495.0,67494.0,0.3608]
[1729612047228,0.074112,67495.0,67494.0,0.49484]
[1729612047427,0.074112,67495.0,67494.0,0.3608]
[1729612047632,0.074115,67493.0,67486.0,0.3608]
[1729612047832,0.24412,67488.0,67487.0,0.13404]
[1729612048031,0.07412,67488.0,67487.0,0.13404]
[1729612050237,0.07412,67488.0,67484.0,0.244124]
[1729612050433,0.07412,67488.0,67485.0,0.13404]
[1729612050634,0.074122,67487.0,67485.0,0.13404]
[1729612050835,0.074122,67486.0,67485.0,0.13404]
[1729612051938,0.17,67487.0,67485.0,0.13404]
[1729612052139,0.074122,67486.0,67485.0,0.13404]
[1729612052839,0.074122,67486.0,67485.0,0.208163]
[1729612054639,0.074122,67486.0,67485.0,0.212163]
[1729612056343,0.074122,67486.0,67485.0,0.13804]
[1729612056738,0.244122,67486.0,67485.0,0.13804]
[1729612057344,0.244122,67486.0,67485.0,0.004]
[1729612058551,0.074128,67481.0,67480.0,0.13356]
[1729612058849,0.074128,67481.0,67474.0,0.074135]
[1729612058850,0.074134,67475.0,67474.0,0.074135]
[1729612059050,0.074134,67475.0,67474.0,0.207695]
[1729612059051,0.244134,67475.0,67474.0,0.207695]
[1729612059745,0.244134,67475.0,67470.0,0.074139]
[1729612059746,0.074137,67473.0,67470.0,0.074139]
[1729612059950,0.074137,67473.0,67472.0,0.568498]
[1729612060146,0.17,67479.0,67472.0,0.49436]
[1729612060352,0.074133,67477.0,67476.0,0.1183137]
[1729612061137,0.002,67486.0,67475.0,0.377694]
[1729612061343,0.074124,67484.0,67483.0,0.244124]
[1729612061854,0.002,67486.0,67483.0,0.162]
[1729612062147,0.074124,67486.0,67485.0,0.074123]
[1729612062354,0.074124,67486.0,67485.0,0.11832661]
[1729612062560,0.17,67486.0,67484.0,0.04420361]
[1729612062748,0.244123,67485.0,67484.0,0.04420361]
[1729612063049,0.074124,67484.0,67481.0,0.04420361]
[1729612063253,0.3608,67482.0,67476.0,0.05888192]
[1729612063453,0.074133,67476.0,67475.0,0.074134]
[1729612064761,0.074133,67476.0,67475.0,0.076134]
[1729612065257,0.074133,67476.0,67475.0,0.002]
[1729612065959,0.434933,67476.0,67475.0,0.04634214]
[1729612066260,0.434933,67476.0,67475.0,0.002]
[1729612066650,0.434933,67476.0,67475.0,0.076134]
[1729612066852,0.434933,67476.0,67475.0,0.074134]
[1729612067060,0.3608,67476.0,67475.0,0.074134]
[1729612067269,0.074124,67485.0,67479.0,0.07413]
[1729612067452,0.074129,67481.0,67480.0,0.11845876]
[1729612067651,0.434929,67481.0,67480.0,0.11845876]
[1729612067853,0.074129,67481.0,67480.0,0.11845876]
[1729612068059,0.434929,67481.0,67480.0,0.11845876]
[1729612068364,0.074129,67481.0,67480.0,0.11845876]
[1729612068567,0.434929,67481.0,67480.0,0.11845876]
[1729612068757,0.434929,67481.0,67480.0,0.074128]
[1729612068952,0.074129,67481.0,67480.0,0.074128]
[1729612069152,0.074127,67484.0,67483.0,0.074123]
[1729612069660,0.07413,67480.0,67479.0,0.074129]
[1729612072862,0.19973447,67481.0,67478.0,0.05910768]
[1729612072863,0.07413,67479.0,67478.0,0.05910768]
[1729612073057,0.07413,67479.0,67478.0,0.074131]
[1729612074260,0.074134,67475.0,67474.0,0.434934]
[1729612076166,0.074134,67475.0,67474.0,0.52620299]
[1729612076463,0.074134,67475.0,67474.0,0.43681874]
[1729612076665,0.074134,67475.0,67474.0,0.3628]
[1729612077068,0.074134,67475.0,67474.0,0.3608]
[1729612077271,0.074134,67475.0,67474.0,0.42881874]
[1729612077959,0.074134,67475.0,67474.0,0.52034868]
[1729612078163,0.074134,67475.0,67474.0,0.42881874]
[1729612078353,0.074134,67475.0,67474.0,0.44632376]
[1729612078564,0.074134,67475.0,67474.0,0.44432376]
[1729612079061,0.074134,67475.0,67474.0,0.5183808]
[1729612079659,0.074134,67475.0,67474.0,0.44432376]
[1729612080063,0.074134,67475.0,67474.0,0.44532376]
[1729612080263,0.074134,67475.0,67474.0,0.51945876]
[1729612080856,0.074131,67478.0,67477.0,0.074131]
[1729612081059,0.074131,67478.0,67477.0,0.09152376]
[1729612081460,0.074131,67478.0,67477.0,0.16565576]
[1729612082967,0.076131,67478.0,67477.0,0.16565576]
[1729612083169,0.076131,67478.0,67477.0,0.23465576]
[1729612084768,0.078131,67478.0,67477.0,0.23465576]
[1729612085856,0.078131,67478.0,67477.0,0.36777576]
[1729612087859,0.248131,67478.0,67477.0,0.22464376]
[1729612089166,0.248131,67478.0,67477.0,0.29877533]
[1729612089765,0.248131,67478.0,67477.0,0.16565533]
[1729612090874,0.248131,67478.0,67477.0,0.09152376]
[1729612091062,0.248131,67478.0,67477.0,0.16565301]
[1729612092059,0.248131,67478.0,67477.0,0.09152376]
[1729612092264,0.248131,67478.0,67477.0,0.22464376]
[1729612092669,0.078131,67478.0,67477.0,0.21664376]
[1729612092976,0.078131,67478.0,67477.0,0.29077576]
[1729612094467,0.076131,67478.0,67477.0,0.21664376]
[1729612094679,0.247131,67478.0,67477.0,0.21664376]
[1729612094881,0.247131,67478.0,67477.0,0.15766351]
[1729612095072,0.074132,67477.0,67475.0,0.07413975]
[1729612095375,0.074132,67477.0,67474.0,0.13312]
[1729612095376,0.074134,67475.0,67474.0,0.13312]
[1729612095581,0.074134,67475.0,67462.0,0.489388]
[1729612095582,0.3608,67475.0,67469.0,0.08877813]
[1729612095772,0.3608,67475.0,67462.0,0.41524]
[1729612095773,0.074141,67469.0,67468.0,0.08897031]
[1729612095971,0.074145,67466.0,67462.0,0.08897857]
[1729612096275,0.074149,67462.0,67457.0,0.07407101]
[1729612096473,0.244153,67458.0,67457.0,0.07407101]
[1729612096673,0.074154,67457.0,67456.0,0.07407101]
[1729612096872,0.074154,67457.0,67456.0,0.244155]
[1729612097265,0.074154,67457.0,67456.0,0.3181785]
[1729612097666,0.074151,67460.0,67459.0,0.07415]
[1729612097973,0.074146,67466.0,67465.0,0.074144]
[1729612098169,0.074146,67466.0,67465.0,0.45127798]
[1729612098978,0.074146,67466.0,67465.0,0.377264]
[1729612099182,0.075146,67466.0,67465.0,0.377264]
[1729612099477,0.075146,67466.0,67465.0,0.45126827]
[1729612099872,0.075146,67466.0,67465.0,0.380264]
[1729612100273,0.075146,67466.0,67465.0,0.13612]
[1729612103482,0.075146,67466.0,67465.0,0.210265]
[1729612107984,0.075146,67466.0,67465.0,0.202265]
[1729612108388,0.076146,67466.0,67465.0,0.202265]
[1729612108981,0.076146,67466.0,67465.0,0.12812]
[1729612109291,0.075146,67466.0,67465.0,0.12812]
[1729612109587,0.075146,67466.0,67465.0,0.18729899]
[1729612109789,0.075146,67466.0,67465.0,0.12812]
[1729612110290,0.075146,67466.0,67465.0,0.18729831]
[1729612110583,0.245146,67466.0,67465.0,0.003]
[1729612112691,0.246146,67466.0,67465.0,0.005]
[1729612113577,0.245146,67466.0,67465.0,0.003]
[1729612113887,0.244146,67466.0,67465.0,0.004]
[1729612114489,0.244146,67466.0,67465.0,0.002]
[1729612115982,0.074148,67463.0,67462.0,0.05917831]
[1729612116193,0.434948,67463.0,67462.0,0.05917831]
[1729612117193,0.434948,67463.0,67462.0,0.06117831]
[1729612117592,0.434948,67463.0,67462.0,0.076149]
[1729612117783,0.434948,67463.0,67462.0,0.13534539]
[1729612118395,0.434948,67463.0,67462.0,0.06119639]
[1729612118786,0.434948,67463.0,67462.0,0.002]
[1729612118983,0.879628,67463.0,67462.0,0.002]
[1729612119893,0.879628,67463.0,67462.0,0.004]
[1729612120187,0.89004622,67463.0,67462.0,0.004]
[1729612121288,0.074156,67455.0,67454.0,0.05919639]
[1729612121488,0.5308,67455.0,67453.0,0.05919639]
[1729612121691,0.074157,67454.0,67453.0,0.074158]
[1729612122587,0.1362,67462.0,67453.0,0.074158]
[1729612122789,0.074153,67461.0,67460.0,0.07415]
[1729612123490,0.074153,67461.0,67460.0,0.05920189]
[1729612123696,0.074151,67460.0,67456.0,0.07399975]
[1729612124289,0.074154,67457.0,67456.0,0.14815375]
[1729612125487,0.074154,67457.0,67456.0,0.074154]
[1729612126398,0.074154,67457.0,67456.0,0.16644565]
[1729612127090,0.074154,67457.0,67456.0,0.24149153]
[1729612127294,0.074154,67457.0,67456.0,0.14919988]
[1729612127493,0.074154,67457.0,67456.0,0.24166903]
[1729612127796,0.074154,67457.0,67456.0,0.14819988]
[1729612127994,0.075154,67457.0,67456.0,0.14919988]
[1729612128295,0.075154,67457.0,67456.0,0.2416687]
[1729612128499,0.075154,67457.0,67456.0,0.075154]
[1729612128696,0.001,67457.0,67456.0,0.075154]
[1729612129002,0.001,67457.0,67456.0,0.30808829]
[1729612129690,0.002,67457.0,67456.0,0.30908829]
[1729612130600,0.076154,67457.0,67456.0,0.30908829]
[1729612131299,0.002,67457.0,67456.0,0.30908829]
[1729612131699,0.3608,67483.0,67456.0,2.14277548]
[1729612131904,0.3608,67483.0,67480.0,0.22923738]
[1729612132201,0.3608,67483.0,67480.0,0.376849]
[1729612132202,0.10386247,67481.0,67480.0,0.376849]
[1729612132588,0.10386247,67481.0,67480.0,0.206849]
[1729612133787,0.10386247,67481.0,67480.0,0.266021]
[1729612134199,0.10786247,67481.0,67480.0,0.266021]
[1729612134497,0.10786247,67481.0,67480.0,0.074129]
[1729612134798,0.074129,67480.0,67479.0,0.13272]
[1729612135095,0.208529,67480.0,67479.0,0.13272]
[1729612135597,0.074131,67478.0,67477.0,0.133304]
[1729612135786,0.074131,67478.0,67477.0,0.266024]
[1729612136595,0.078129,67480.0,67479.0,0.07413]
[1729612137699,0.074129,67480.0,67479.0,0.07413]
[1729612138499,0.078129,67480.0,67479.0,0.07413]
[1729612138799,0.078129,67480.0,67479.0,0.19885]
[1729612140802,0.078129,67480.0,67479.0,0.19881]
[1729612141106,0.078129,67480.0,67479.0,0.06613]
[1729612141301,0.074135,67477.0,67476.0,0.074133]
[1729612141503,0.074135,67477.0,67476.0,0.206813]
[1729612141902,0.074135,67477.0,67472.0,0.3608]
[1729612142105,0.074135,67477.0,67466.0,0.00314312]
[1729612142106,0.074137,67473.0,67466.0,0.00314312]
[1729612142303,0.604943,67467.0,67466.0,0.00222312]
[1729612142700,1.049623,67467.0,67466.0,0.00222312]
[1729612143005,0.074154,67457.0,67456.0,0.001]
[1729612143217,0.074154,67457.0,67456.0,0.13368]
[1729612143394,0.074154,67457.0,67456.0,0.001]
[1729612143806,0.074154,67457.0,67456.0,0.075155]
[1729612144609,0.074154,67457.0,67456.0,0.207875]
[1729612145707,0.074154,67457.0,67456.0,0.075155]
[1729612145909,0.074154,67457.0,67456.0,0.207475]
[1729612146209,0.074154,67457.0,67456.0,0.206475]
[1729612147116,0.075154,67457.0,67456.0,0.207475]
[1729612147408,0.076154,67457.0,67456.0,0.13532]
[1729612148011,0.25657895,67457.0,67456.0,0.13532]
[1729612148411,0.25657895,67457.0,67456.0,0.003]
[1729612150111,0.08657895,67457.0,67456.0,0.003]
[1729612151314,0.076154,67457.0,67456.0,0.173]
[1729612151512,0.002,67457.0,67456.0,0.247155]
[1729612151816,0.002,67457.0,67456.0,0.861875]
[1729612152017,0.002,67457.0,67456.0,0.96131805]
[1729612152215,0.07414,67471.0,67470.0,0.07414]
[1729612152520,0.074139,67471.0,67470.0,0.30232]
[1729612152912,0.074135,67475.0,67472.0,0.074138]
[1729612153116,0.074136,67474.0,67472.0,0.074138]
[1729612153310,0.434937,67473.0,67472.0,0.074138]
[1729612153517,0.434937,67473.0,67471.0,0.05910234]
[1729612153518,0.3608,67473.0,67471.0,0.05910234]
[1729612153818,0.074139,67471.0,67470.0,0.21317976]
[1729612154009,0.074139,67471.0,67470.0,0.28731976]
[1729612154205,0.074139,67471.0,67470.0,0.27931976]
[1729612155611,0.078139,67471.0,67470.0,0.27931976]
[1729612156822,0.074139,67471.0,67470.0,0.27931976]
[1729612157427,0.004,67473.0,67470.0,0.20517976]
[1729612157621,0.004,67473.0,67472.0,0.074138]
[1729612158123,0.078137,67473.0,67472.0,0.074138]
[1729612158623,0.004,67473.0,67472.0,0.074138]
[1729612159321,0.074122,67487.0,67472.0,0.75829789]
[1729612159516,0.074122,67487.0,67480.0,0.604929]
[1729612159924,0.1409,67492.0,67480.0,0.604929]
[1729612160125,0.074122,67486.0,67480.0,0.604929]
[1729612160631,0.01074666,67490.0,67480.0,0.604929]
[1729612160825,0.01074666,67490.0,67480.0,0.671229]
[1729612161729,0.03373447,67481.0,67480.0,0.671229]
[1729612162724,0.03373447,67481.0,67480.0,0.68195573]
[1729612163321,0.074111,67496.0,67495.0,0.074111]
[1729612163521,0.074111,67499.0,67498.0,0.074109]
[1729612163717,0.074111,67499.0,67498.0,0.244109]
[1729612165828,0.078111,67499.0,67498.0,0.244109]
[1729612167022,0.078111,67499.0,67495.0,0.3618]
[1729612167221,0.074111,67496.0,67495.0,0.3608]
[1729612167433,0.074111,67496.0,67495.0,0.49308]
[1729612168732,0.074111,67496.0,67495.0,0.13228]
[1729612169034,0.078111,67496.0,67495.0,0.13228]
[1729612169334,0.074124,67487.0,67486.0,0.074121]
[1729612169632,0.244124,67487.0,67486.0,0.206401]
[1729612169829,0.244124,67487.0,67486.0,0.198401]
[1729612170034,0.244124,67487.0,67486.0,0.13228]
[1729612170240,0.5308,67487.0,67475.0,0.0728]
[1729612170428,0.5308,67487.0,67472.0,0.4297]
[1729612170429,0.17,67477.0,67472.0,0.3608]
[1729612170735,0.244132,67477.0,67476.0,0.13228]
[1729612171126,0.074135,67474.0,67473.0,0.074137]
[1729612171333,0.074135,67474.0,67473.0,0.206417]
[1729612171927,0.074135,67474.0,67473.0,0.074137]
[1729612172123,0.074135,67474.0,67473.0,0.13228]
[1729612172332,0.074135,67474.0,67473.0,0.206417]
[1729612174730,0.074135,67474.0,67473.0,0.208417]
[1729612174934,0.074135,67474.0,67473.0,0.210417]
[1729612175833,0.074135,67474.0,67473.0,0.13628]
[1729612176036,0.074135,67474.0,67473.0,0.004]
[1729612176337,0.074135,67474.0,67473.0,0.13592]
[1729612176932,0.074135,67474.0,67473.0,0.13392]
[1729612177733,0.074137,67473.0,67472.0,0.3608]
[1729612177934,0.244137,67473.0,67464.0,0.074146]
[1729612178231,0.244142,67468.0,67467.0,0.13192]
[1729612181136,0.074144,67466.0,67465.0,0.3618]
[1729612181342,0.074144,67466.0,67462.0,0.13192]
[1729612181543,0.17,67463.0,67462.0,0.13192]
[1729612181941,0.244148,67463.0,67462.0,0.13192]
[1729612183739,0.17,67463.0,67459.0,0.074152]
[1729612184045,0.074151,67460.0,67459.0,0.206112]
[1729612185149,0.074151,67460.0,67459.0,0.198112]
[1729612189049,0.074148,67464.0,67463.0,0.074146]
[1729612200356,0.074148,67464.0,67463.0,0.066146]
[1729612200859,0.074148,67464.0,67463.0,0.11039675]
[1729612201951,0.074148,67464.0,67463.0,0.066146]
[1729612207462,0.2223752,67464.0,67463.0,0.066146]
[1729612210789,0.1482272,67464.0,67463.0,0.957746]
[1729612211360,0.0378272,67464.0,67463.0,1.402426]
[1729612211772,0.0378272,67464.0,67463.0,1.72821713]
[1729612212065,0.0378272,67464.0,67463.0,1.70587794]
[1729612212261,0.0378272,67464.0,67463.0,0.98745087]
[1729612212470,0.1119732,67464.0,67463.0,0.62665087]
[1729612212661,0.1119732,67464.0,67463.0,0.09110783]
[1729612212854,0.1119732,67464.0,67462.0,0.07408571]
[1729612213061,0.17,67463.0,67461.0,0.07408571]
[1729612213261,0.074149,67462.0,67461.0,0.07408571]
[1729612213462,0.144549,67462.0,67461.0,0.16585248]
[1729612213969,0.144549,67462.0,67461.0,0.09176677]
[1729612215054,0.144549,67462.0,67461.0,0.16585482]